{"text_format":"3","workbook":"xlsx","n_sheets":2,"sheets":["Сводный бюджет","Сведения о бюджете"],"not_rendered":{"images":1,"defined_names":1},"read":"whole","date_system":"1900"}

{"sheet":"Сводный бюджет","index":0,"n_rows":28,"n_cols":7,"rows_kept":28}
[{"$nulls":6}," "]
[]
[null,"БЮДЖЕТ СВАДЬБЫ",{"v":20000,"d":"20,000 ₽"}]
[]
[null,"РАСХОДЫ","Доля \n%","Выделенный бюджет","Предполагаемые \nзатраты","Фактические \nзатраты"]
[null,"Прием",{"v":0.5,"d":"50%"},{"$f":"Полный_бюджет_свадьбы*'Сводный бюджет'!$C6","v":{"v":10000,"d":"10,000 ₽"}},{"$f":"Таблица_Прием[[#Totals],[Предполагаемые затраты]]","v":{"v":0,"d":"0 ₽"}},{"$f":"Таблица_Прием[[#Totals],[Фактические затраты]]","v":{"v":0,"d":"0 ₽"}}]
[null,"Одежда",{"v":0.1,"d":"10%"},{"$f":"Полный_бюджет_свадьбы*'Сводный бюджет'!$C7","v":{"v":2000,"d":"2,000 ₽"}},{"$f":"Таблица_Одежда[[#Totals],[Предполагаемые затраты]]","v":{"v":0,"d":"0 ₽"}},{"$f":"Таблица_Одежда[[#Totals],[Фактические затраты]]","v":{"v":0,"d":"0 ₽"}}]
[null,"Цветы и оформление",{"v":0.1,"d":"10%"},{"$f":"Полный_бюджет_свадьбы*'Сводный бюджет'!$C8","v":{"v":2000,"d":"2,000 ₽"}},{"$f":"Таблица_Цветы_и_украшения[[#Totals],[Предполагаемые затраты]]","v":{"v":0,"d":"0 ₽"}},{"$f":"Таблица_Цветы_и_украшения[[#Totals],[Фактические затраты]]","v":{"v":0,"d":"0 ₽"}}]
[null,"Музыка",{"v":0.1,"d":"10%"},{"$f":"Полный_бюджет_свадьбы*'Сводный бюджет'!$C9","v":{"v":2000,"d":"2,000 ₽"}},{"$f":"Таблица_Музыка[[#Totals],[Предполагаемые затраты]]","v":{"v":0,"d":"0 ₽"}},{"$f":"Таблица_Музыка[[#Totals],[Фактические затраты]]","v":{"v":0,"d":"0 ₽"}}]
[null,"Фотографии и видео",{"v":0.1,"d":"10%"},{"$f":"Полный_бюджет_свадьбы*'Сводный бюджет'!$C10","v":{"v":2000,"d":"2,000 ₽"}},{"$f":"Таблица_Фото_и_видео[[#Totals],[Предполагаемые затраты]]","v":{"v":0,"d":"0 ₽"}},{"$f":"Таблица_Фото_и_видео[[#Totals],[Фактические затраты]]","v":{"v":0,"d":"0 ₽"}}]
[null,"Сувениры и подарки",{"v":0.03,"d":"3%"},{"$f":"Полный_бюджет_свадьбы*'Сводный бюджет'!$C11","v":{"v":600,"d":"600 ₽"}},{"$f":"Таблица_Сувениры_и_подарки[[#Totals],[Предполагаемые затраты]]","v":{"v":0,"d":"0 ₽"}},{"$f":"Таблица_Сувениры_и_подарки[[#Totals],[Фактические затраты]]","v":{"v":0,"d":"0 ₽"}}]
[null,"Церемония",{"v":0.02,"d":"2%"},{"$f":"Полный_бюджет_свадьбы*'Сводный бюджет'!$C12","v":{"v":400,"d":"400 ₽"}},{"$f":"Таблица_Церемония[[#Totals],[Предполагаемые затраты]]","v":{"v":0,"d":"0 ₽"}},{"$f":"Таблица_Церемония[[#Totals],[Фактические затраты]]","v":{"v":0,"d":"0 ₽"}}]
[null,"Канцтовары",{"v":0.02,"d":"2%"},{"$f":"Полный_бюджет_свадьбы*'Сводный бюджет'!$C13","v":{"v":400,"d":"400 ₽"}},{"$f":"Таблица_Бланки[[#Totals],[Предполагаемые затраты]]","v":{"v":0,"d":"0 ₽"}},{"$f":"Таблица_Бланки[[#Totals],[Фактические затраты]]","v":{"v":0,"d":"0 ₽"}}]
[null,"Обручальные кольца",{"v":0.02,"d":"2%"},{"$f":"Полный_бюджет_свадьбы*'Сводный бюджет'!$C14","v":{"v":400,"d":"400 ₽"}},{"$f":"Таблица_Кольца[[#Totals],[Предполагаемые затраты]]","v":{"v":0,"d":"0 ₽"}},{"$f":"Таблица_Кольца[[#Totals],[Фактические затраты]]","v":{"v":0,"d":"0 ₽"}}]
[null,"Транспорт",{"v":0.01,"d":"1%"},{"$f":"Полный_бюджет_свадьбы*'Сводный бюджет'!$C15","v":{"v":200,"d":"200 ₽"}},{"$f":"Таблица_Транспорт[[#Totals],[Предполагаемые затраты]]","v":{"v":0,"d":"0 ₽"}},{"$f":"Таблица_Транспорт[[#Totals],[Фактические затраты]]","v":{"v":0,"d":"0 ₽"}}]
[null,"Итог",{"$f":"SUM(C6:C15)","v":{"v":1,"d":"100%"}},{"$f":"SUM(D6:D15)","v":{"v":20000,"d":"20,000 ₽"}},{"v":0,"d":"0 ₽"},{"v":0,"d":"0 ₽"}]
[]
[null,"ВКЛАДЫ"]
[null,"Источник средств","Вклад"]
[null,"Сбережения",{"v":10000,"d":"10,000 ₽"}]
[null,"Родители партнера 1",{"v":4000,"d":"4,000 ₽"}]
[null,"Бабушка и дедушка партнера 1",{"v":2000,"d":"2,000 ₽"}]
[null,"Родители партнера 2",{"v":4000,"d":"4,000 ₽"}]
[null,"Бабушка и дедушка партнера 2",{"v":4000,"d":"4,000 ₽"}]
[null,"Другие вклады",{"v":2000,"d":"2,000 ₽"}]
[null,"Итого",{"$f":"SUBTOTAL(109,Таблица_Вклады[Вклад])","v":{"v":26000,"d":"26,000 ₽"}}]
[]
[null,{"$f":"IF(Таблица_Вклады[[#Totals],[Вклад]]<Полный_бюджет_свадьбы,\"Разница, подлежащая оплате\",\"Доступные дополнительные средства\")","v":"Доступные дополнительные средства"},{"$f":"IF(Таблица_Вклады[[#Totals],[Вклад]]<Полный_бюджет_свадьбы,Полный_бюджет_свадьбы-Таблица_Вклады[[#Totals],[Вклад]],Таблица_Вклады[[#Totals],[Вклад]]-Полный_бюджет_свадьбы)","v":{"v":6000,"d":"6,000 ₽"}}]

{"sheet":"Сведения о бюджете","index":1,"n_rows":80,"n_cols":4,"rows_kept":80}
[]
[null,"ПРИЕМ","Предполагаемые затраты","Фактические затраты"]
[null,"Место проведения и аренда"]
[null,"Питание и обслуживание"]
[null,"Напитки"]
[null,"Торт"]
[null,"Прочие расходы"]
[null,"Итог",{"$f":"SUBTOTAL(109,Таблица_Прием[Предполагаемые затраты])","v":{"v":0,"d":"0.00 ₽"}},{"$f":"SUBTOTAL(109,Таблица_Прием[Фактические затраты])","v":{"v":0,"d":"0.00 ₽"}}]
[]
[null,"ОДЕЖДА","Предполагаемые затраты","Фактические затраты"]
[null,"Смокинг, костюм и/или платье"]
[null,"Подгонка по фигуре"]
[null,"Головное украшение и вуаль"]
[null,"Аксессуары"]
[null,"Прическа и макияж"]
[null,"Прочие расходы"]
[null,"Итог",{"$f":"SUBTOTAL(109,Таблица_Одежда[Предполагаемые затраты])","v":{"v":0,"d":"0.00 ₽"}},{"$f":"SUBTOTAL(109,Таблица_Одежда[Фактические затраты])","v":{"v":0,"d":"0.00 ₽"}}]
[]
[null,"ЦВЕТЫ И ОФОРМЛЕНИЕ","Предполагаемые затраты","Фактические затраты"]
[null,"Цветочные композиции для церемонии"]
[null,"Бутоны и корзина девочки с цветами"]
[null,"Подушка для колец"]
[null,"Букеты"]
[null,"Бутоньерки"]
[null,"Цветочные браслеты"]
[null,"Оформление приема"]
[null,"Освещение"]
[null,"Прочие расходы"]
[null,"Итог",{"$f":"SUBTOTAL(109,Таблица_Цветы_и_украшения[Предполагаемые затраты])","v":{"v":0,"d":"0.00 ₽"}},{"$f":"SUBTOTAL(109,Таблица_Цветы_и_украшения[Фактические затраты])","v":{"v":0,"d":"0.00 ₽"}}]
[]
[null,"МУЗЫКА","Предполагаемые затраты","Фактические затраты"]
[null,"Музыканты церемонии"]
[null,"Музыканты для коктейля"]
[null,"Группа, диджей или развлечения на приеме"]
[null,"Звуковая система или аренда танцевальной площадки"]
[null,"Прочие расходы"]
[null,"Итог",{"$f":"SUBTOTAL(109,Таблица_Музыка[Предполагаемые затраты])","v":{"v":0,"d":"0.00 ₽"}},{"$f":"SUBTOTAL(109,Таблица_Музыка[Фактические затраты])","v":{"v":0,"d":"0.00 ₽"}}]
[]
[null,"ФОТОГРАФИИ И ВИДЕО","Предполагаемые затраты","Фактические затраты"]
[null,"Фотографии"]
[null,"Видео"]
[null,"Дополнительные печатные фотографии и альбомы"]
[null,"Прочие расходы"]
[null,"Итог",{"$f":"SUBTOTAL(109,Таблица_Фото_и_видео[Предполагаемые затраты])","v":{"v":0,"d":"0.00 ₽"}},{"$f":"SUBTOTAL(109,Таблица_Фото_и_видео[Фактические затраты])","v":{"v":0,"d":"0.00 ₽"}}]
[]
[null,"СУВЕНИРЫ И ПОДАРКИ","Предполагаемые затраты","Фактические затраты"]
[null,"Приветственные подарки"]
[null,"Праздничные подарки"]
[null,"Прочие расходы"]
[null,"Итог",{"$f":"SUBTOTAL(109,Таблица_Сувениры_и_подарки[Предполагаемые затраты])","v":{"v":0,"d":"0.00 ₽"}},{"$f":"SUBTOTAL(109,Таблица_Сувениры_и_подарки[Фактические затраты])","v":{"v":0,"d":"0.00 ₽"}}]
[]
[null,"ЦЕРЕМОНИЯ","Предполагаемые затраты","Фактические затраты"]
[null,"Оплата места проведения"]
[null,"Оплата официантов или церковные пожертвования"]
[null,"Прочие расходы"]
[null,"Итог",{"$f":"SUBTOTAL(109,Таблица_Церемония[Предполагаемые затраты])","v":{"v":0,"d":"0.00 ₽"}},{"$f":"SUBTOTAL(109,Таблица_Церемония[Фактические затраты])","v":{"v":0,"d":"0.00 ₽"}}]
[]
[null,"КАНЦТОВАРЫ","Предполагаемые затраты","Фактические затраты"]
[null,"Пригласительные открытки"]
[null,"Приглашения и подтверждения"]
[null,"Программы"]
[null,"Карточки рассадки"]
[null,"Карточки меню"]
[null,"Благодарственные письма"]
[null,"Почтовые расходы"]
[null,"Прочие расходы"]
[null,"Итог",{"$f":"SUBTOTAL(109,Таблица_Бланки[Предполагаемые затраты])","v":{"v":0,"d":"0.00 ₽"}},{"$f":"SUBTOTAL(109,Таблица_Бланки[Фактические затраты])","v":{"v":0,"d":"0.00 ₽"}}]
[]
[null,"ОБРУЧАЛЬНЫЕ КОЛЬЦА","Предполагаемые затраты","Фактические затраты"]
[null,"Обручальные кольца"]
[null,"Аксессуары для колец"]
[null,"Итог",{"$f":"SUBTOTAL(109,Таблица_Кольца[Предполагаемые затраты])","v":{"v":0,"d":"0.00 ₽"}},{"$f":"SUBTOTAL(109,Таблица_Кольца[Фактические затраты])","v":{"v":0,"d":"0.00 ₽"}}]
[]
[null,"ТРАНСПОРТ","Предполагаемые затраты","Фактические затраты"]
[null,"Аренда главного автомобиля"]
[null,"Аренда автомобилей для гостей"]
[null,"Транспорт для приезжих гостей"]
[null,"Парковка"]
[null,"Прочие расходы"]
[null,"Итог",{"$f":"SUBTOTAL(109,Таблица_Транспорт[Предполагаемые затраты])","v":{"v":0,"d":"0.00 ₽"}},{"$f":"SUBTOTAL(109,Таблица_Транспорт[Фактические затраты])","v":{"v":0,"d":"0.00 ₽"}}]